fUST/lending_fUST_20240813
["ID","MTS","AMOUNT","RATE_DAILY","PERIOD"]
[334773331,1723545040255,-500.0,0.00013698,2]
[334773333,1723545040264,-500.0,0.00013698,2]
[334773334,1723545040274,-509.21483951,0.00013698,2]
[334773335,1723545040283,-500.0,0.00013698,2]
[334773336,1723545040292,-500.0,0.00013698,2]
[334773337,1723545040301,-500.0,0.00013698,2]
[334773338,1723545040310,-500.0,0.00013698,2]
[334773339,1723545040320,-502.39048227,0.00013698,2]
[334773340,1723545040330,-500.0,0.00013698,2]
[334773341,1723545040340,-500.0,0.00013698,2]
[334773342,1723545040349,-500.0,0.00013698,2]
[334773343,1723545040359,-502.96860766,0.00013698,2]
[334773344,1723545040368,-503.23260538,0.00013698,2]
[334773346,1723545040378,-500.0,0.00013698,2]
[334773347,1723545040388,-500.0,0.00013698,2]
[334773349,1723545040397,-327.2198573,0.00013698,2]
[334773350,1723545040406,-500.0,0.00013698,2]
[334773351,1723545040416,-500.0,0.00013698,2]
[334773352,1723545040425,-485.08655144,0.00013698,2]
[334773353,1723545040434,-500.0,0.00013698,2]
[334773354,1723545040444,-500.0,0.00013698,2]
[334773355,1723545040454,-500.0,0.00013698,2]
[334773356,1723545040464,-512.89114188,0.00013698,2]
[334773357,1723545040474,-620.20536172,0.00013698,2]
[334773358,1723545040483,-500.0,0.00013698,2]
[334773359,1723545040492,-500.0,0.00013698,2]
[334773360,1723545040502,-514.14392242,0.00013698,2]
[334773361,1723545040512,-500.0,0.00013698,2]
[334773362,1723545040522,-500.0,0.00013698,2]
[334773363,1723545040531,-500.0,0.00013698,2]
[334773364,1723545040542,-500.0,0.00013698,2]
[334773365,1723545040551,-778.88,0.00013698,2]
[334773366,1723545040564,-500.0,0.00013698,2]
[334773367,1723545040574,-500.0,0.00013698,2]
[334773369,1723545040583,-500.0,0.00013698,2]
[334773371,1723545040592,-1035.12,0.00013698,2]
[334773372,1723545040602,-500.72057933,0.00013698,2]
[334773373,1723545040612,-205.60716256,0.00013698,2]
[334773375,1723545040626,-504.60165406,0.00013698,2]
[334773376,1723545040635,-500.0,0.00013698,2]
[334773377,1723545040645,-500.0,0.00013698,2]
[334773378,1723545040655,-500.0,0.00013698,2]
[334773379,1723545040665,-678.39,0.00013698,2]
[334773380,1723545040676,-500.0,0.00013698,2]
[334773381,1723545040686,-500.0,0.00013698,2]
[334773382,1723545040699,-500.0,0.00013698,2]
[334773383,1723545040708,-500.0,0.00013698,2]
[334773384,1723545040719,-500.0,0.00013698,2]
[334773385,1723545040731,-561.84,0.00013698,2]
[334773386,1723545040741,-500.0,0.00013698,2]
[334773387,1723545040751,-500.0,0.00013698,2]
[334773388,1723545040761,-500.0,0.00013698,2]
[334773390,1723545040771,-504.55040292,0.00013698,2]
[334773391,1723545040781,-500.0,0.00013698,2]
[334773392,1723545040792,-508.4712836,0.00013698,2]
[334773393,1723545040803,-500.0,0.00013698,2]
[334773394,1723545040814,-501.14263449,0.00013698,2]
[334773395,1723545040824,-504.38063046,0.00013698,2]
[334773396,1723545040834,-504.0,0.00013698,2]
[334773397,1723545040844,-504.47820726,0.00013698,2]
[334773398,1723545040853,-500.0,0.00013698,2]
[334773399,1723545040863,-500.0,0.00013698,2]
[334773400,1723545040872,-500.0,0.00013698,2]
[334773401,1723545040882,-506.87032051,0.00013698,2]
[334773402,1723545040891,-500.0,0.00013698,2]
[334773403,1723545040902,-517.6,0.00013698,2]
[334773404,1723545040911,-500.0,0.00013698,2]
[334773406,1723545040923,-500.0,0.00013698,2]
[334773407,1723545040932,-500.0,0.00013698,2]
[334773408,1723545040943,-500.0,0.00013698,2]
[334773409,1723545040952,-753.72,0.00013698,2]
[334773410,1723545040962,-500.0,0.00013698,2]
[334773411,1723545040972,-507.85492179,0.00013698,2]
[334773412,1723545040981,-500.0,0.00013698,2]
[334773413,1723545040991,-771.75,0.00013698,2]
[334773414,1723545041000,-500.0,0.00013698,2]
[334773415,1723545041010,-500.0,0.00013698,2]
[334773416,1723545041021,-500.0,0.00013698,2]
[334773417,1723545041030,-505.56303483,0.00013698,2]
[334773418,1723545041040,-500.0,0.00013698,2]
[334773419,1723545041051,-500.0,0.00013698,2]
[334773420,1723545041060,-502.55693021,0.00013698,2]
[334773421,1723545041069,-564.12758029,0.00013698,2]
[334773422,1723545041079,-500.0,0.00013698,2]
[334773423,1723545041089,-500.0,0.00013698,2]
[334773424,1723545041099,-300.96958541,0.00013698,2]
[334773425,1723545041109,-812.44,0.00013698,2]
[334773426,1723545041118,-500.0,0.00013698,2]
[334773427,1723545041127,-500.0,0.00013698,2]
[334773428,1723545041137,-500.0,0.00013698,2]
[334773429,1723545041147,-192.72976493,0.00013698,2]
[334773430,1723545041157,-509.99697858,0.00013698,2]
[334773431,1723545041167,-506.59051584,0.00013698,2]
[334773432,1723545041176,-500.0,0.00013698,2]
[334773433,1723545041186,-500.0,0.00013698,2]
[334773434,1723545041195,-510.6312989,0.00013698,2]
[334773435,1723545041205,-286.74941357,0.00013698,2]
[334773436,1723545041214,-500.0,0.00013698,2]
[334773438,1723545041223,-500.0,0.00013698,2]
[334773439,1723545041232,-503.24555776,0.00013698,2]
[334773440,1723545041242,-500.0,0.00013698,2]
[334773441,1723545041251,-500.0,0.00013698,2]
[334773442,1723545041260,-500.0,0.00013698,2]
[334773443,1723545041270,-505.9565507,0.00013698,2]
[334773444,1723545041279,-500.0,0.00013698,2]
[334773445,1723545041288,-501.91736511,0.00013698,2]
[334773446,1723545041299,-561.9,0.00013698,2]
[334773447,1723545041309,-1177.25,0.00013698,2]
[334773448,1723545041318,-503.6887129,0.00013698,2]
[334773449,1723545041327,-503.34967199,0.00013698,2]
[334773450,1723545041337,-503.76411208,0.00013698,2]
[334773451,1723545041346,-505.50713472,0.00013698,2]
[334773452,1723545041356,-1052.71,0.00013698,2]
[334773453,1723545041366,-509.75,0.00013698,2]
[334773454,1723545041376,-500.0,0.00013698,2]
[334773455,1723545041386,-503.91010508,0.00013698,2]
[334773456,1723545041396,-1178.14169129,0.00013698,2]
[334773457,1723545041405,-500.0,0.00013698,2]
[334773458,1723545041415,-500.0,0.00013698,2]
[334773459,1723545041425,-500.0,0.00013698,2]
[334773460,1723545041434,-500.0,0.00013698,2]
[334773461,1723545041444,-500.0,0.00013698,2]
[334773462,1723545041454,-500.0,0.00013698,2]
[334773463,1723545041463,-500.0,0.00013698,2]
[334773464,1723545041473,-711.89,0.00013698,2]
[334773465,1723545041482,-1677.61,0.00013698,2]
[334773466,1723545041491,-500.0,0.00013698,2]
[334773467,1723545041502,-728.09,0.00013698,2]
[334773468,1723545041512,-500.0,0.00013698,2]
[334773469,1723545041522,-500.0,0.00013698,2]
[334773470,1723545041531,-662.38,0.00013698,2]
[334773471,1723545041541,-500.0,0.00013698,2]
[334773472,1723545041553,-500.0,0.00013698,2]
[334773473,1723545041563,-500.0,0.00013698,2]
[334773474,1723545041571,-500.0,0.00013698,2]
[334773475,1723545041580,-711.92,0.00013698,2]
[334773476,1723545041590,-500.0,0.00013698,2]
[334773477,1723545041598,-500.0,0.00013698,2]
[334773478,1723545041607,-500.0,0.00013698,2]
[334773479,1723545041618,-500.0,0.00013698,2]
[334773480,1723545041628,-500.0,0.00013698,2]
[334773481,1723545041637,-500.0,0.00013698,2]
[334773482,1723545041646,-509.08617267,0.00013698,2]
[334773483,1723545041655,-500.0,0.00013698,2]
[334773484,1723545041664,-731.79,0.00013698,2]
[334773485,1723545041674,-500.0,0.00013698,2]
[334773486,1723545041683,-503.55,0.00013698,2]
[334773487,1723545041693,-470.61676239,0.00013698,2]
[334773488,1723545041702,-500.0,0.00013698,2]
[334773489,1723545041711,-507.79661399,0.00013698,2]
[334773490,1723545041720,-500.0,0.00013698,2]
[334773491,1723545041729,-506.75545438,0.00013698,2]
[334773492,1723545041739,-500.0,0.00013698,2]
[334773493,1723545041748,-500.0,0.00013698,2]
[334773494,1723545041757,-500.0,0.00013698,2]
[334773495,1723545041767,-500.0,0.00013698,2]
[334773496,1723545041776,-509.45464959,0.00013698,2]
[334773497,1723545041786,-500.0,0.00013698,2]
[334773498,1723545041923,-500.0,0.00013698,2]
[334773499,1723545041933,-553.9254321,0.00013698,2]
[334773500,1723545041943,-504.12316771,0.00013698,2]
[334773501,1723545041953,-500.0,0.00013698,2]
[334773502,1723545041962,-505.62042349,0.00013698,2]
[334773503,1723545041971,-500.0,0.00013698,2]
[334773504,1723545041980,-500.0,0.00013698,2]
[334773505,1723545041990,-500.0,0.00013698,2]
[334773506,1723545041999,-500.0,0.00013698,2]
[334773507,1723545042009,-500.0,0.00013698,2]
[334773508,1723545042019,-500.0,0.00013698,2]
[334773509,1723545042028,-507.02549008,0.00013698,2]
[334773510,1723545042038,-500.0,0.00013698,2]
[334773511,1723545042050,-500.0,0.00013698,2]
[334773512,1723545042060,-500.0,0.00013698,2]
[334773513,1723545042069,-500.0,0.00013698,2]
[334773514,1723545042079,-500.0,0.00013698,2]
[334773515,1723545042088,-816.17,0.00013698,2]
[334773516,1723545042098,-500.0,0.00013698,2]
[334773517,1723545042108,-500.0,0.00013698,2]
[334773518,1723545042118,-540.34874411,0.00013698,2]
[334773519,1723545042127,-500.0,0.00013698,2]
[334773520,1723545042138,-885.3,0.00013698,2]
[334773521,1723545042150,-500.0,0.00013698,2]
[334773522,1723545042161,-500.0,0.00013698,2]
[334773523,1723545042171,-500.0,0.00013698,2]
[334773524,1723545042182,-500.0,0.00013698,2]
[334773525,1723545042195,-500.0,0.00013698,2]
[334773526,1723545042206,-500.0,0.00013698,2]
[334773527,1723545042217,-500.0,0.00013698,2]
[334773528,1723545042229,-510.26957456,0.00013698,2]
[334773529,1723545042239,-1381.45,0.00013698,2]
[334773530,1723545042250,-500.0,0.00013698,2]
[334773531,1723545042260,-500.0,0.00013698,2]
[334773532,1723545042272,-1471.52,0.00013698,2]
[334773533,1723545042282,-500.0,0.00013698,2]
[334773534,1723545042293,-500.0,0.00013698,2]
[334773535,1723545042303,-642.24,0.00013698,2]
[334773536,1723545042315,-1119.38,0.00013698,2]
[334773537,1723545042326,-875.35,0.00013698,2]
[334773538,1723545042337,-750.23,0.00013698,2]
[334773539,1723545042348,-6260.69,0.00013698,2]
[334773540,1723545042359,-500.0,0.00013698,2]
[334773541,1723545042369,-500.0,0.00013698,2]
[334773542,1723545042379,-500.0,0.00013698,2]
[334773543,1723545042388,-500.0,0.00013698,2]
[334773544,1723545042398,-500.0,0.00013698,2]
[334773545,1723545042407,-500.0,0.00013698,2]
[334773546,1723545042417,-500.0,0.00013698,2]
[334773547,1723545042427,-500.0,0.00013698,2]
[334773548,1723545042437,-500.0,0.00013698,2]
[334773549,1723545042446,-500.0,0.00013698,2]
[334773550,1723545042456,-504.50337806,0.00013698,2]
[334773551,1723545042465,-353.68,0.00013698,2]
[334773552,1723545042475,-4591.46,0.00013698,2]
[334773553,1723545042484,-500.0,0.00013698,2]
[334773554,1723545042493,-500.0,0.00013698,2]
[334773555,1723545042503,-500.0,0.00013698,2]
[334773556,1723545042512,-386.10903096,0.00013698,2]
[334773581,1723545043814,-1781.55096904,0.00013698,2]
[334773583,1723545043825,-347.46826741,0.00013698,2]
[334773584,1723545043835,-500.0,0.00013698,2]
[334773585,1723545043845,-500.0,0.00013698,2]
[334773586,1723545043854,-525.95628427,0.00013698,2]
[334773587,1723545043864,-500.0,0.00013698,2]
[334773588,1723545043874,-501.56277265,0.00013698,2]
[334773589,1723545043883,-504.83601221,0.00013698,2]
[334773590,1723545043892,-833.53,0.00013698,2]
[334773591,1723545043901,-1020.23,0.00013698,2]
[334773592,1723545043911,-500.0,0.00013698,2]
[334773593,1723545043920,-504.35557041,0.00013698,2]
[334773594,1723545043929,-500.0,0.00013698,2]
[334773595,1723545043939,-500.0,0.00013698,2]
[334773596,1723545043948,-500.0,0.00013698,2]
[334773597,1723545043958,-2042.76,0.00013698,2]
[334773598,1723545043967,-565.79,0.00013698,2]
[334773599,1723545043976,-1018.8,0.00013698,2]
[334773600,1723545043986,-500.0,0.00013698,2]
[334773601,1723545043996,-500.0,0.00013698,2]
[334773602,1723545044005,-502.36474691,0.00013698,2]
[334773603,1723545044015,-500.0,0.00013698,2]
[334773604,1723545044025,-500.0,0.00013698,2]
[334773605,1723545044034,-510.0778045,0.00013698,2]
[334773606,1723545044044,-841.11,0.00013698,2]
[334773607,1723545044054,-507.49307374,0.00013698,2]
[334773608,1723545044063,-500.0,0.00013698,2]
[334773610,1723545044073,-521.85,0.00013698,2]
[334773612,1723545044082,-1571.61,0.00013698,2]
[334773614,1723545044092,-625.34,0.00013698,2]
[334773616,1723545044102,-502.66791495,0.00013698,2]
[334773617,1723545044111,-270.742307,0.00013698,2]
[334773618,1723545044120,-500.0,0.00013698,2]
[334773619,1723545044130,-47.72708227,0.00013698,2]
[334773650,1723545499481,1281.08458727,0.00025,60]
[334773659,1723545778065,305.30543198,0.00025,120]
[334773664,1723545970389,197.0,7.35e-05,2]
[334773665,1723545994226,30026.0,0.00025,60]
[334773675,1723546172152,-254.1434,9.135e-05,2]
[334773737,1723546231990,-534.1923277,9.044e-05,2]
[334773738,1723546232000,-300.0,9.109e-05,2]
[334773739,1723546232011,-300.0,9.109e-05,2]
[334773741,1723546232023,-12930.42096785,9.11e-05,2]
[334773767,1723546238350,-11969.57903215,9.11e-05,2]
[334773768,1723546238360,-696.18325317,9.135e-05,2]
[334773769,1723546238371,-534.1923277,9.135e-05,2]
[334773770,1723546238382,-3205.54753289,9.998e-05,2]
[334773771,1723546238394,-204.38485604,9.999e-05,2]
[334773773,1723546238405,-710.71288058,9.999e-05,2]
[334773775,1723546238415,-404.1964714,9.999e-05,2]
[334773777,1723546238427,-728.34861839,9.999e-05,2]
[334773779,1723546238438,-155.33154114,9.999e-05,2]
[334773781,1723546238447,-188.45659018,9.999e-05,2]
[334773782,1723546238457,-278.90259865,9.999e-05,2]
[334773783,1723546238467,-156.78137498,9.999e-05,2]
[334773784,1723546238478,-569.2097652,9.999e-05,2]
[334773785,1723546238489,-270.91136909,9.999e-05,2]
[334773786,1723546238499,-501.8361156,9.999e-05,2]
[334773787,1723546238511,-155.05960713,9.999e-05,2]
[334773788,1723546238522,-180.67948358,9.999e-05,2]
[334773789,1723546238532,-522.96413212,9.999e-05,2]
[334773790,1723546238544,-302.37543682,9.999e-05,2]
[334773791,1723546238555,-309.5047931,9.999e-05,2]
[334773792,1723546238565,-520.25072733,9.999e-05,2]
[334773793,1723546238577,-250.59023246,9.999e-05,2]
[334773794,1723546238587,-189.9631639,9.999e-05,2]
[334773795,1723546238599,-543.67907992,9.999e-05,2]
[334773796,1723546238610,-1010.34570065,9.999e-05,2]
[334773797,1723546238620,-694.90272385,9.999e-05,2]
[334773798,1723546238630,-534.52389159,9.999e-05,2]
[334773799,1723546238642,-201.70451665,9.999e-05,2]
[334773800,1723546238652,-154.76012181,9.999e-05,2]
[334773801,1723546238662,-154.76012181,9.999e-05,2]
[334773802,1723546238673,-155.72760011,9.999e-05,2]
[334773803,1723546238682,-208.48867553,9.999e-05,2]
[334773804,1723546238691,-182.85284052,9.999e-05,2]
[334773805,1723546238701,-210.60883339,9.999e-05,2]
[334773806,1723546238710,-183.31414419,9.999e-05,2]
[334773807,1723546238719,-309.49706746,9.999e-05,2]
[334773808,1723546238729,-846.46724827,9.999e-05,2]
[334773809,1723546238739,-241.78515989,9.999e-05,2]
[334773810,1723546238749,-154.76012181,9.999e-05,2]
[334773811,1723546238759,-154.76012181,9.999e-05,2]
[334773812,1723546238768,-205.42133969,9.999e-05,2]
[334773813,1723546238778,-154.76012181,9.999e-05,2]
[334773814,1723546238787,-174.72672334,9.999e-05,2]
[334773815,1723546238796,-174.72672334,9.999e-05,2]
[334773816,1723546238806,-320.08358525,9.999e-05,2]
[334773817,1723546238815,-193.53718372,9.999e-05,2]
[334773818,1723546238826,-288.10768054,0.0001,2]
[334773819,1723546238836,-524.52684521,0.0001,2]
[334773820,1723546238846,-200.0,0.0001,2]
[334773821,1723546238856,-309.47389206,0.0001,2]
[334773822,1723546238865,-200.0,0.0001,2]
[334773823,1723546238874,-200.0,0.0001,2]
[334773824,1723546238885,-420.0,0.0001002,2]
[334773825,1723546238896,-893.96172222,0.00010276,2]
[334773826,1723546238906,-250.0,0.00010437,2]
[334773827,1723546239062,-250.0,0.00010465,2]
[334773828,1723546239072,-250.0,0.00010494,2]
[334773829,1723546239083,-250.0,0.00010523,2]
[334773830,1723546239093,-250.0,0.00010551,2]
[334773831,1723546239103,-250.0,0.0001058,2]
[334773832,1723546239112,-250.0,0.00010608,2]
[334773833,1723546239122,-250.0,0.00010637,2]
[334773834,1723546239131,-250.0,0.00010666,2]
[334773835,1723546239143,-250.0,0.00010694,2]
[334773836,1723546239154,-250.0,0.00010723,2]
[334773837,1723546239163,-250.0,0.00010752,2]
[334773838,1723546239174,-250.0,0.0001078,2]
[334773839,1723546239185,-250.0,0.00010809,2]
[334773840,1723546239195,-250.0,0.00010837,2]
[334773841,1723546239204,-250.0,0.00010866,2]
[334773842,1723546239215,-250.0,0.00010895,2]
[334773843,1723546239226,-250.0,0.00010923,2]
[334773844,1723546239238,-250.0,0.00010952,2]
[334773845,1723546239249,-250.0,0.00010981,2]
[334773846,1723546239259,-587.0,0.00011022,2]
[334773847,1723546239269,-400.0,0.0001137,2]
[334773848,1723546239282,-400.0,0.0001137,2]
[334773849,1723546239294,-823.0,0.00012124,2]
[334773850,1723546239304,-2886.76663983,0.000129,2]
[334773851,1723546239314,-2886.76663977,0.000129,2]
[334773852,1723546239324,-1152.0,0.00013336,2]
[334773853,1723546239335,-600.0,0.00013373,2]
[334773854,1723546239345,-600.0,0.00013373,2]
[334773855,1723546239355,-282.046,0.00013508,2]
[334773856,1723546239365,-542.754,0.00013508,2]
[334773857,1723546239375,-1413.0,0.00013508,2]
[334773858,1723546239388,-253.422,0.00013508,2]
[334773859,1723546239397,-140.01298998,0.00013508,2]
[334773883,1723546243020,-10.38501002,0.00013508,2]
[334773885,1723546243031,-244.3,0.00013508,2]
[334773887,1723546243041,-153.0,0.00013512,2]
[334773888,1723546243051,-150.79842938,0.00013512,2]
[334773913,1723546246126,-273.37336231,9.9e-05,2]
[334773915,1723546246135,-2.20157062,0.00013512,2]
[334773917,1723546246147,-153.0,0.00013512,2]
[334773918,1723546246158,-153.0,0.00013512,2]
[334773919,1723546246168,-153.0,0.00013512,2]
[334773920,1723546246178,-153.0,0.00013512,2]
[334773921,1723546246189,-153.0,0.00013512,2]
[334773922,1723546246199,-11782.04506707,0.00013566,2]
[334773929,1723546492122,8134.316,0.00013,10]
[334773930,1723546529896,10000.0,0.00025,60]
[334773931,1723546586905,10000.0,7.35e-05,2]
[334773932,1723546619810,16305.56528498,7.35e-05,2]
[334773933,1723546620818,1672.75348974,7.35e-05,2]
[334773934,1723546620940,510.06692442,7.35e-05,2]
[334773935,1723546621696,462.67468089,7.35e-05,2]
[334773936,1723546627087,8896.99120269,7.35e-05,2]
[334773937,1723546646108,250.18842983,7.35e-05,2]
[334773938,1723546707184,158.63524894,7.35e-05,2]
[334773939,1723546743861,3585.61318966,7.35e-05,2]
[334773940,1723546744207,2926.18841505,7.35e-05,2]
[334773941,1723546755742,176.53388088,7.35e-05,2]
[334773942,1723546761346,12229.35103531,7.35e-05,2]
[334773943,1723546763431,218.59781191,7.35e-05,2]
[334773944,1723546770885,405.19320777,7.35e-05,2]
[334773948,1723546842780,158.63524894,7.35e-05,2]
[334773949,1723546863470,3282.16129807,7.35e-05,2]
[334773950,1723546867697,738.58105149,7.35e-05,2]
[334773951,1723546871447,510.06692442,7.35e-05,2]
[334773952,1723546873044,834.32224871,7.35e-05,2]
[334773953,1723546880666,405.19320777,7.35e-05,2]
[334773954,1723546886448,223.78071941,7.35e-05,2]
[334773955,1723546888081,217.81318691,7.35e-05,2]
[334773960,1723546934193,202.7785298,7.35e-05,2]
[334773961,1723546942462,510.06692442,7.35e-05,2]
[334773963,1723546972713,404.52206683,7.35e-05,2]
[334773964,1723546974094,392.23997277,7.35e-05,2]
[334773965,1723546981427,201.20456961,7.35e-05,2]
[334773966,1723547033947,223.78071941,7.35e-05,2]
[334773967,1723547035604,510.06692442,7.35e-05,2]
[334773968,1723547053145,1001.22779927,0.00025,60]
[334774001,1723547364214,-300.0,8.179e-05,2]
[334774002,1723547364236,-300.0,8.262e-05,2]
[334774003,1723547364258,-300.0,8.345e-05,2]
[334774004,1723547364279,-300.0,8.345e-05,2]
[334774005,1723547364301,-5674.28104859,8.346e-05,2]
[334774077,1723547439245,-300.0,8.262e-05,2]
[334774078,1723547439254,-1254.0,8.263e-05,2]
[334774079,1723547439267,-17971.71895141,8.263e-05,2]
[334774080,1723547439276,-223.78071941,8.346e-05,2]
[334774081,1723547439286,-510.06692442,8.346e-05,2]
[334774082,1723547439296,-19225.71895141,8.346e-05,2]
[334774083,1723547439305,-175.58109,8.931e-05,2]
[334774084,1723547439315,-175.58109,8.956e-05,2]
[334774085,1723547439324,-175.58109,8.98e-05,2]
[334774086,1723547439334,-175.58109,9.005e-05,2]
[334774087,1723547439343,-175.58109,9.029e-05,2]
[334774088,1723547439353,-175.58109,9.054e-05,2]
[334774089,1723547439365,-175.58109,9.078e-05,2]
[334774090,1723547439374,-420.0,9.088e-05,2]
[334774091,1723547439386,-175.58109,9.103e-05,2]
[334774092,1723547439397,-175.58109,9.127e-05,2]
[334774093,1723547439406,-175.58109,9.152e-05,2]
[334774094,1723547439415,-175.58109,9.176e-05,2]
[334774095,1723547439426,-175.58109,9.201e-05,2]
[334774096,1723547439436,-175.58109,9.225e-05,2]
[334774097,1723547439445,-175.58109,9.25e-05,2]
[334774098,1723547439455,-175.58109,9.274e-05,2]
[334774099,1723547439466,-175.58109,9.299e-05,2]
[334774101,1723547439475,-175.58109,9.323e-05,2]
[334774103,1723547439484,-175.58109,9.348e-05,2]
[334774105,1723547439494,-175.58109,9.372e-05,2]
[334774107,1723547439503,-175.58109,9.397e-05,2]
[334774108,1723547439512,-587.0,9.997e-05,2]
[334774109,1723547439522,-154.76012181,9.999e-05,2]
[334774110,1723547439531,-407.76406021,9.999e-05,2]
[334774111,1723547439541,-320.08358525,9.999e-05,2]
[334774112,1723547439551,-585.35209464,9.999e-05,2]
[334774113,1723547439560,-728.34861839,9.999e-05,2]
[334774114,1723547439570,-189.9631639,9.999e-05,2]
[334774115,1723547439579,-309.51251798,9.999e-05,2]
[334774116,1723547439588,-205.42133969,9.999e-05,2]
[334774117,1723547439599,-569.2097652,9.999e-05,2]
[334774118,1723547439608,-289.29346482,9.999e-05,2]
[334774119,1723547439617,-154.79678224,9.999e-05,2]
[334774120,1723547439626,-846.46724827,9.999e-05,2]
[334774121,1723547439635,-508.05143041,9.999e-05,2]
[334774122,1723547439646,-154.76012181,9.999e-05,2]
[334774123,1723547439655,-183.31414419,9.999e-05,2]
[334774124,1723547439664,-154.76012181,9.999e-05,2]
[334774125,1723547439673,-155.03864168,9.999e-05,2]
[334774126,1723547439682,-241.08007801,9.999e-05,2]
[334774127,1723547439692,-232.49850343,9.999e-05,2]
[334774128,1723547439702,-180.22249239,9.999e-05,2]
[334774129,1723547439712,-177.28386842,9.999e-05,2]
[334774130,1723547439721,-154.76012181,9.999e-05,2]
[334774131,1723547439732,-155.16038273,9.999e-05,2]
[334774132,1723547439741,-154.9231882,9.999e-05,2]
[334774134,1723547439751,-301.25996446,9.999e-05,2]
[334774135,1723547439760,-155.061211,9.999e-05,2]
[334774136,1723547439769,-284.16424637,9.999e-05,2]
[334774137,1723547439778,-244.7942,9.999e-05,2]
[334774138,1723547439788,-155.15906,9.999e-05,2]
[334774139,1723547439797,-536.0286964,9.999e-05,2]
[334774140,1723547439806,-175.09489674,9.999e-05,2]
[334774141,1723547439816,-343.93623301,9.999e-05,2]
[334774142,1723547439825,-156.04119867,9.999e-05,2]
[334774143,1723547439834,-309.67712516,9.999e-05,2]
[334774144,1723547439843,-196.53869799,9.999e-05,2]
[334774145,1723547439853,-522.96413212,9.999e-05,2]
[334774147,1723547439863,-162.26684154,9.999e-05,2]
[334774149,1723547439872,-155.07202166,9.999e-05,2]
[334774151,1723547439881,-308.05834403,9.999e-05,2]
[334774152,1723547439890,-254.994722,9.999e-05,2]
[334774155,1723547439900,-163.35221619,9.999e-05,2]
[334774156,1723547439909,-162.55174301,9.999e-05,2]
[334774157,1723547439919,-165.7378718,9.999e-05,2]
[334774158,1723547439929,-156.78137498,9.999e-05,2]
[334774159,1723547439939,-494.81071941,9.999e-05,2]
[334774160,1723547439949,-156.91451497,9.999e-05,2]
[334774161,1723547439958,-157.99537743,9.999e-05,2]
[334774163,1723547439968,-636.72640188,9.999e-05,2]
[334774165,1723547439977,-157.00320308,9.999e-05,2]
[334774166,1723547439987,-180.67948358,9.999e-05,2]
[334774168,1723547439997,-543.67907992,9.999e-05,2]
[334774170,1723547440007,-209.42836987,9.999e-05,2]
[334774172,1723547440016,-850.36837131,9.999e-05,2]
[334774174,1723547440025,-809.49275165,9.999e-05,2]
[334774176,1723547440035,-154.76012181,9.999e-05,2]
[334774177,1723547440045,-154.76012181,9.999e-05,2]
[334774179,1723547440055,-188.45659018,9.999e-05,2]
[334774181,1723547440065,-282.02658253,0.0001,2]
[334774183,1723547440075,-192.35241877,0.0001,2]
[334774185,1723547440085,-155.67416837,0.0001,2]
[334774186,1723547440095,-259.33,0.00010959,2]
[334774187,1723547440104,-823.0,0.00010997,2]
[334774188,1723547440114,-299.44342377,0.00011073,2]
[334774189,1723547440124,-1152.0,0.00012096,2]
[334774190,1723547440133,-207.3387286,0.00012849,2]
[334774191,1723547440143,-153.0,0.00012877,2]
[334774192,1723547440153,-1413.0,0.00012973,2]
[334774193,1723547440164,-5013.1844193,0.00013159,2]
[334774194,1723547440173,-604.81,0.00013246,2]
[334774195,1723547440183,-150.0,0.00013279,2]
[334774197,1723547440192,-1613.0,0.00013306,2]
[334774199,1723547440201,-476.65857373,0.0001343,2]
[334774201,1723547440211,-152.95542678,0.0001348,2]
[334774203,1723547440221,-80739.72972454,0.00013486,2]
[334774204,1723547440233,-153.0,0.00013494,2]